fUSD/lending_fUSD_20241215
["ID","MTS","AMOUNT","RATE_DAILY","PERIOD"]
[345452078,1734265846607,-5075.54283512,0.00019823,2]
[345452123,1734266245006,3061.51,0.0002,120]
[345452124,1734266392505,450.0,0.00013,2]
[345452125,1734266393606,500.0,0.00015,2]
[345452126,1734266489893,151.11,0.00010137,2]
[345452128,1734266625094,173.42,0.00014909,2]
[345452137,1734267031972,-359.63859129,0.000169,2]
[345452138,1734267031982,-893.36,0.00016921,2]
[345452139,1734267031991,-550.0,0.00017,2]
[345452140,1734267031999,-500.0,0.00017568,2]
[345452141,1734267032009,-531.01,0.00018399,2]
[345452142,1734267032018,-429.38,0.00018399,2]
[345452143,1734267032027,-200.0,0.00018399,2]
[345452144,1734267032037,-23900.0,0.00018399,2]
[345452145,1734267032046,-2751.0,0.00018399,2]
[345452146,1734267032055,-266.15,0.00018421,2]
[345452147,1734267032065,-153.97,0.0001858,2]
[345452148,1734267032075,-153.97,0.00018603,2]
[345452149,1734267032084,-153.97,0.00018627,2]
[345452150,1734267032093,-150.0,0.0001863,2]
[345452151,1734267032102,-250.0,0.00018642,2]
[345452152,1734267032111,-153.97,0.0001865,2]
[345452153,1734267032120,-500.0,0.00018664,2]
[345452154,1734267032130,-500.0,0.00018664,2]
[345452155,1734267032139,-1320.93,0.0001867,2]
[345452156,1734267032148,-153.97,0.00018673,2]
[345452157,1734267032158,-164.65,0.0001872,2]
[345452158,1734267032168,-1000.0,0.00018758,2]
[345452159,1734267032177,-4182.1,0.00018839,2]
[345452160,1734267032186,-566.75,0.00018839,2]
[345452161,1734267032195,-178.8,0.00018839,2]
[345452162,1734267032205,-954.242,0.00018839,2]
[345452163,1734267032214,-250.0,0.00018878,2]
[345452164,1734267032223,-150.0,0.00019,2]
[345452165,1734267032232,-600.0,0.00019,2]
[345452166,1734267032242,-322.43,0.00019,2]
[345452167,1734267032251,-893.36,0.00019185,2]
[345452169,1734267032260,-416.23418253,0.00019481,2]
[345452171,1734267032269,-153.0,0.00019614,2]
[345452172,1734267032278,-153.0,0.00019614,2]
[345452174,1734267032288,-153.0,0.00019614,2]
[345452176,1734267032297,-153.0,0.00019614,2]
[345452178,1734267032306,-151.14856963,0.00019644,2]
[345452180,1734267032316,-1000.0,0.00019681,2]
[345452182,1734267032325,-17993.61577937,0.00019686,2]
[345452184,1734267032334,-3293.6905,0.00019686,2]
[345452186,1734267032343,-5000.0,0.00019696,2]
[345452187,1734267032353,-515.91733544,0.00019696,2]
[345452188,1734267032362,-835.236,0.00019697,2]
[345452190,1734267032371,-466.8130461,0.00019705,2]
[345452191,1734267032380,-17993.61577934,0.0001971,2]
[345452192,1734267032390,-1066.39604732,0.00019716,2]
[345452193,1734267032398,-515.91733541,0.00019719,2]
[345452194,1734267032407,-17993.61577934,0.00019734,2]
[345452195,1734267032419,-584.42459427,0.00019741,2]
[345452196,1734267032428,-515.91733541,0.00019741,2]
[345452197,1734267032437,-584.42459427,0.00019744,2]
[345452198,1734267032446,-16433.98507097,0.00019757,2]
[345452199,1734267032462,-884.0,0.00019757,2]
[345452200,1734267032473,-675.63070837,0.00019757,2]
[345452201,1734267032482,-137.38929163,0.0001976,2]
[345452202,1734267032500,-362.61070837,0.0001976,2]
[345452203,1734267032510,-500.0,0.0001976,2]
[345452204,1734267032519,-1000.0,0.00019761,2]
[345452205,1734267032528,-17084.9056,0.00019762,2]
[345452206,1734267032538,-336.9982264,0.00019764,2]
[345452207,1734267032552,-247.42636787,0.00019764,2]
[345452208,1734267032561,-515.91733541,0.00019764,2]
[345452209,1734267032570,-561.90076172,0.00019766,2]
[345452210,1734267032581,-22.52383255,0.00019766,2]
[345452211,1734267032592,-200.0,0.00019774,2]
[345452212,1734267032601,-584.42459427,0.00019781,2]
[345452213,1734267032611,-292.62421928,0.00019781,2]
[345452214,1734267032622,-1432.94944335,0.00019781,2]
[345452215,1734267032634,-16268.04211671,0.00019781,2]
[345452216,1734267032643,-512.24168703,0.00019783,3]
[345452217,1734267032653,-500.0,0.00019783,3]
[345452218,1734267032665,-500.0,0.00019783,3]
[345452219,1734267032674,-279.27748054,0.00019783,3]
[345452220,1734267032683,-500.0,0.00019783,3]
[345452221,1734267032692,-500.0,0.00019783,3]
[345452222,1734267032701,-500.0,0.00019783,3]
[345452223,1734267032710,-500.0,0.00019783,3]
[345452224,1734267032719,-500.0,0.00019783,3]
[345452225,1734267032728,-208.20547042,0.00019783,3]
[345452226,1734267032738,-500.0,0.00019783,3]
[345452227,1734267032747,-500.0,0.00019783,3]
[345452228,1734267032756,-500.0,0.00019783,3]
[345452229,1734267032766,-500.0,0.00019783,3]
[345452230,1734267032775,-263.65927728,0.00019783,3]
[345452231,1734267032784,-500.0,0.00019783,3]
[345452232,1734267032793,-500.0,0.00019783,3]
[345452233,1734267032802,-702.46,0.00019783,3]
[345452234,1734267032811,-500.0,0.00019783,3]
[345452235,1734267032820,-500.0,0.00019783,3]
[345452236,1734267032829,-504.26825574,0.00019783,3]
[345452237,1734267032838,-1745.72591,0.00019784,2]
[345452238,1734267032847,-584.42459427,0.00019785,2]
[345452239,1734267032856,-500.0,0.00019785,3]
[345452240,1734267032865,-500.0,0.00019785,3]
[345452241,1734267032875,-500.0,0.00019785,3]
[345452242,1734267032885,-300.5,0.00019785,3]
[345452243,1734267032894,-500.0,0.00019785,3]
[345452244,1734267032903,-206.98,0.00019785,3]
[345452245,1734267032915,-500.0,0.00019785,3]
[345452246,1734267032924,-500.0,0.00019785,3]
[345452247,1734267032933,-500.0,0.00019785,3]
[345452248,1734267032942,-500.0,0.00019785,3]
[345452249,1734267032951,-500.0,0.00019785,3]
[345452250,1734267032960,-500.0,0.00019785,3]
[345452251,1734267032969,-576.74,0.00019785,3]
[345452252,1734267032978,-500.0,0.00019785,3]
[345452253,1734267032987,-385.819464,0.00019785,3]
[345452254,1734267032996,-280.8141407,0.00019785,3]
[345452255,1734267033005,-628.08,0.00019785,3]
[345452256,1734267033015,-238.6716124,0.00019785,3]
[345452257,1734267033024,-500.0,0.00019785,3]
[345452258,1734267033033,-500.0,0.00019786,3]
[345452259,1734267033042,-500.0,0.00019786,3]
[345452260,1734267033051,-500.0,0.00019786,3]
[345452261,1734267033060,-500.88981781,0.00019786,3]
[345452262,1734267033069,-463.56900861,0.00019786,3]
[345452263,1734267033079,-500.0,0.00019786,3]
[345452264,1734267033088,-500.0,0.00019786,3]
[345452265,1734267033097,-500.0,0.00019786,3]
[345452266,1734267033107,-500.0,0.00019786,3]
[345452267,1734267033117,-500.0,0.00019786,3]
[345452268,1734267033126,-175.68,0.00019786,2]
[345452269,1734267033135,-500.0,0.00019786,3]
[345452270,1734267033145,-500.0,0.00019786,3]
[345452271,1734267033154,-500.0,0.00019786,3]
[345452272,1734267033167,-500.0,0.00019786,3]
[345452273,1734267033178,-500.0,0.00019786,3]
[345452274,1734267033187,-500.0,0.00019786,3]
[345452275,1734267033196,-500.0,0.00019786,3]
[345452276,1734267033206,-500.0,0.00019786,3]
[345452277,1734267033215,-357.04105685,0.00019786,3]
[345452278,1734267033225,-388.37674951,0.00019786,3]
[345452279,1734267033235,-500.0,0.00019786,3]
[345452280,1734267033244,-500.0,0.00019786,3]
[345452281,1734267033253,-500.0,0.00019786,3]
[345452282,1734267033262,-500.0,0.00019786,3]
[345452283,1734267033273,-500.0,0.00019786,3]
[345452284,1734267033282,-286.37673165,0.00019786,3]
[345452285,1734267033291,-500.0,0.00019786,3]
[345452286,1734267033301,-500.0,0.00019786,3]
[345452287,1734267033310,-500.0,0.00019786,3]
[345452288,1734267033319,-500.0,0.00019786,3]
[345452289,1734267033330,-501.79404841,0.00019786,3]
[345452290,1734267033339,-500.0,0.00019786,3]
[345452291,1734267033349,-500.0,0.00019786,3]
[345452292,1734267033358,-500.0,0.00019786,3]
[345452293,1734267033367,-500.0,0.00019786,3]
[345452294,1734267033377,-500.0,0.00019786,3]
[345452295,1734267033386,-322.54897827,0.00019786,3]
[345452296,1734267033396,-500.0,0.00019786,3]
[345452297,1734267033405,-863.11,0.00019786,3]
[345452298,1734267033416,-500.0,0.00019786,3]
[345452299,1734267033425,-500.0,0.00019786,3]
[345452300,1734267033434,-500.0,0.00019786,3]
[345452301,1734267033444,-500.0,0.00019786,3]
[345452302,1734267033453,-500.0,0.00019786,3]
[345452303,1734267033462,-500.0,0.00019786,3]
[345452304,1734267033471,-500.0,0.00019786,3]
[345452305,1734267033480,-500.0,0.00019786,3]
[345452306,1734267033490,-500.0,0.00019786,3]
[345452307,1734267033499,-500.0,0.00019786,3]
[345452308,1734267033507,-500.0,0.00019786,3]
[345452309,1734267033517,-500.0,0.00019786,3]
[345452310,1734267033526,-500.0,0.00019786,3]
[345452311,1734267033535,-500.0,0.00019786,3]
[345452312,1734267033548,-685.69,0.00019786,3]
[345452313,1734267033557,-619.56,0.00019786,3]
[345452314,1734267033567,-528.06,0.00019786,3]
[345452315,1734267033577,-1608.09,0.00019786,3]
[345452316,1734267033587,-500.0,0.00019786,3]
[345452317,1734267033596,-500.0,0.00019786,3]
[345452318,1734267033605,-500.0,0.00019786,3]
[345452319,1734267033615,-500.0,0.00019786,3]
[345452320,1734267033624,-500.0,0.00019786,3]
[345452321,1734267033633,-500.0,0.00019786,3]
[345452322,1734267033642,-1320.26,0.00019786,3]
[345452323,1734267033651,-500.0,0.00019786,3]
[345452324,1734267033663,-1556.02,0.00019786,3]
[345452325,1734267033672,-500.0,0.00019786,3]
[345452326,1734267033682,-500.0,0.00019786,3]
[345452327,1734267033691,-500.0,0.00019786,3]
[345452328,1734267033701,-693.33,0.00019786,3]
[345452329,1734267033710,-500.0,0.00019786,3]
[345452330,1734267033719,-500.34342038,0.00019786,3]
[345452331,1734267033728,-500.0,0.00019786,3]
[345452332,1734267033737,-500.0,0.00019786,3]
[345452333,1734267033746,-500.0,0.00019786,3]
[345452334,1734267033755,-500.0,0.00019786,3]
[345452335,1734267033765,-500.0,0.00019786,3]
[345452336,1734267033774,-500.0,0.00019786,3]
[345452337,1734267033784,-500.0,0.00019786,3]
[345452338,1734267033793,-500.0,0.00019786,3]
[345452339,1734267033803,-270.97091631,0.00019786,3]
[345452340,1734267033812,-500.0,0.00019786,3]
[345452341,1734267033821,-515.91733541,0.00019787,2]
[345452342,1734267033831,-500.0,0.00019795,3]
[345452343,1734267033840,-500.0,0.00019795,3]
[345452344,1734267033850,-500.0,0.00019795,3]
[345452345,1734267033859,-500.0,0.00019795,3]
[345452346,1734267033869,-500.0,0.00019795,3]
[345452347,1734267033879,-500.0,0.00019795,3]
[345452348,1734267033888,-613.69,0.00019795,3]
[345452349,1734267033898,-500.0,0.00019795,3]
[345452350,1734267033907,-500.0,0.00019795,3]
[345452351,1734267033919,-500.0,0.00019795,3]
[345452352,1734267033928,-500.0,0.00019795,3]
[345452353,1734267033938,-1212.52,0.00019795,3]
[345452354,1734267033947,-500.0,0.00019795,3]
[345452355,1734267033957,-500.0,0.00019795,3]
[345452356,1734267033966,-500.0,0.00019795,3]
[345452357,1734267033975,-500.0,0.00019795,3]
[345452358,1734267033985,-3584.96,0.00019795,3]
[345452359,1734267033994,-11354.61483645,0.00019796,4]
[345452360,1734267034004,-258.15990434,0.00019796,2]
[345452361,1734267034013,-500.0,0.00019796,3]
[345452362,1734267034022,-500.0,0.00019796,3]
[345452363,1734267034031,-307.35331812,0.00019796,3]
[345452364,1734267034041,-500.0,0.00019796,3]
[345452365,1734267034050,-602.59705481,0.00019796,3]
[345452366,1734267034059,-500.0,0.00019796,3]
[345452367,1734267034068,-500.0,0.00019796,3]
[345452368,1734267034077,-500.0,0.00019796,3]
[345452369,1734267034087,-500.0,0.00019796,3]
[345452370,1734267034096,-500.0,0.00019796,3]
[345452371,1734267034106,-500.0,0.00019796,3]
[345452372,1734267034115,-500.0,0.00019796,3]
[345452373,1734267034124,-500.0,0.00019796,3]
[345452374,1734267034133,-500.0,0.00019796,3]
[345452375,1734267034142,-538.2,0.00019796,3]
[345452376,1734267034152,-192.09483839,0.00019796,3]
[345452377,1734267034163,-500.0,0.00019796,3]
[345452378,1734267034172,-500.0,0.00019796,3]
[345452379,1734267034181,-520.23477759,0.00019796,3]
[345452380,1734267034191,-500.0,0.00019796,3]
[345452381,1734267034201,-500.0,0.00019796,3]
[345452382,1734267034210,-300.06896501,0.00019796,3]
[345452383,1734267034220,-500.0,0.00019796,3]
[345452384,1734267034229,-500.0,0.00019796,3]
[345452385,1734267034239,-500.0,0.00019796,3]
[345452386,1734267034248,-500.0,0.00019796,3]
[345452387,1734267034258,-500.0,0.00019796,3]
[345452388,1734267034267,-649.16915631,0.00019796,3]
[345452389,1734267034277,-500.0,0.00019796,3]
[345452390,1734267034288,-530.11,0.00019796,3]
[345452391,1734267034297,-500.0,0.00019796,3]
[345452392,1734267034305,-527.86,0.00019796,3]
[345452393,1734267034314,-500.0,0.00019796,3]
[345452394,1734267034324,-500.0,0.00019796,3]
[345452395,1734267034333,-366.69,0.00019796,3]
[345452396,1734267034342,-500.0,0.00019796,3]
[345452397,1734267034352,-500.0,0.00019796,3]
[345452398,1734267034361,-500.0,0.00019796,3]
[345452399,1734267034370,-500.0,0.00019796,3]
[345452400,1734267034379,-290.94,0.00019796,3]
[345452401,1734267034388,-500.0,0.00019796,3]
[345452402,1734267034398,-368.42,0.00019796,3]
[345452403,1734267034407,-500.0,0.00019796,3]
[345452404,1734267034419,-500.0,0.00019796,3]
[345452405,1734267034429,-314.5003063,0.00019796,3]
[345452406,1734267034438,-500.0,0.00019796,3]
[345452407,1734267034448,-413.98051965,0.00019796,3]
[345452408,1734267034457,-500.0,0.00019796,3]
[345452409,1734267034467,-500.0,0.00019796,3]
[345452410,1734267034475,-500.0,0.00019796,3]
[345452411,1734267034485,-500.0,0.00019796,3]
[345452412,1734267034494,-239.23147003,0.00019796,3]
[345452413,1734267034503,-500.0,0.00019796,3]
[345452414,1734267034514,-500.0,0.00019796,3]
[345452415,1734267034523,-500.0,0.00019796,3]
[345452416,1734267034532,-500.0,0.00019796,3]
[345452417,1734267034543,-500.0,0.00019796,3]
[345452418,1734267034554,-500.0,0.00019796,3]
[345452419,1734267034563,-500.0,0.00019796,3]
[345452420,1734267034572,-500.0,0.00019796,3]
[345452421,1734267034582,-500.0,0.00019796,3]
[345452422,1734267034592,-500.0,0.00019796,3]
[345452423,1734267034602,-608.39232206,0.00019796,3]
[345452424,1734267034611,-500.0,0.00019796,3]
[345452425,1734267034621,-500.0,0.00019796,3]
[345452426,1734267034632,-500.0,0.00019796,3]
[345452427,1734267034642,-500.0,0.00019796,3]
[345452428,1734267034651,-500.0,0.00019796,3]
[345452429,1734267034662,-500.0,0.00019796,3]
[345452430,1734267034671,-500.0,0.00019796,3]
[345452431,1734267034680,-1000.0,0.00019796,30]
[345452432,1734267034690,-1000.0,0.00019796,30]
[345452433,1734267034700,-1000.0,0.00019796,30]
[345452434,1734267034709,-500.0,0.00019796,3]
[345452435,1734267034719,-500.0,0.00019796,3]
[345452436,1734267034728,-500.0,0.00019796,3]
[345452437,1734267034739,-500.0,0.00019796,3]
[345452438,1734267034748,-500.0,0.00019796,3]
[345452439,1734267034758,-500.0,0.00019796,3]
[345452440,1734267034767,-500.0,0.00019796,3]
[345452441,1734267034777,-500.0,0.00019796,3]
[345452442,1734267034785,-500.0,0.00019796,3]
[345452443,1734267034794,-627.12314086,0.00019796,3]
[345452444,1734267034803,-500.0,0.00019796,3]
[345452445,1734267034813,-193.81866937,0.00019796,3]
[345452446,1734267034822,-500.0,0.00019796,3]
[345452447,1734267034831,-500.0,0.00019796,3]
[345452448,1734267034841,-500.0,0.00019796,3]
[345452449,1734267034851,-500.0,0.00019796,3]
[345452450,1734267034860,-500.0,0.00019796,3]
[345452451,1734267034870,-500.0,0.00019796,3]
[345452452,1734267034880,-500.0,0.00019796,3]
[345452453,1734267034889,-500.0,0.00019796,3]
[345452454,1734267034898,-500.0,0.00019796,3]
[345452455,1734267034908,-500.0,0.00019796,3]
[345452456,1734267034920,-500.0,0.00019796,3]
[345452457,1734267034929,-500.0,0.00019796,3]
[345452458,1734267034938,-500.0,0.00019796,3]
[345452459,1734267034947,-500.0,0.00019796,3]
[345452460,1734267034957,-500.0,0.00019796,3]
[345452461,1734267034966,-500.0,0.00019796,3]
[345452462,1734267034977,-500.0,0.00019796,3]
[345452463,1734267034986,-713.01,0.00019796,3]
[345452464,1734267034995,-713.01,0.00019796,3]
[345452465,1734267035005,-713.01,0.00019796,3]
[345452466,1734267035014,-500.0,0.00019796,3]
[345452467,1734267035024,-500.0,0.00019796,3]
[345452468,1734267035033,-515.64,0.00019796,3]
[345452469,1734267035043,-515.64,0.00019796,3]
[345452470,1734267035052,-515.64,0.00019796,3]
[345452471,1734267035062,-833.33,0.00019796,3]
[345452472,1734267035071,-833.33,0.00019796,3]
[345452473,1734267035081,-833.33,0.00019796,3]
[345452474,1734267035090,-500.0,0.00019796,3]
[345452475,1734267035100,-500.0,0.00019796,3]
[345452476,1734267035109,-500.0,0.00019796,3]
[345452477,1734267035118,-863.11,0.00019796,3]
[345452478,1734267035128,-863.11,0.00019796,3]
[345452479,1734267035137,-863.11,0.00019796,3]
[345452480,1734267035146,-500.0,0.00019796,3]
[345452481,1734267035155,-500.0,0.00019796,3]
[345452482,1734267035165,-500.0,0.00019796,3]
[345452483,1734267035174,-500.0,0.00019796,3]
[345452484,1734267035184,-500.0,0.00019796,3]
[345452485,1734267035193,-500.0,0.00019796,3]
[345452486,1734267035203,-500.0,0.00019796,3]
[345452487,1734267035213,-500.0,0.00019796,3]
[345452488,1734267035222,-500.0,0.00019796,3]
[345452489,1734267035232,-500.0,0.00019796,3]
[345452490,1734267035241,-500.0,0.00019796,3]
[345452491,1734267035251,-578.50127863,0.00019796,3]
[345452492,1734267035261,-620.33762594,0.00019796,3]
[345452493,1734267035270,-500.0,0.00019796,3]
[345452494,1734267035280,-500.0,0.00019796,3]
[345452495,1734267035289,-323.41147517,0.00019796,3]
[345452496,1734267035298,-500.0,0.00019796,3]
[345452497,1734267035308,-524.38,0.00019796,3]
[345452498,1734267035316,-524.38,0.00019796,3]
[345452499,1734267035326,-524.38,0.00019796,3]
[345452500,1734267035336,-500.0,0.00019796,3]
[345452501,1734267035345,-660.0,0.00019796,3]
[345452502,1734267035354,-660.0,0.00019796,3]
[345452503,1734267035364,-500.0,0.00019796,3]
[345452504,1734267035373,-500.0,0.00019796,3]
[345452505,1734267035383,-660.0,0.00019796,3]
[345452506,1734267035392,-500.0,0.00019796,3]
[345452507,1734267035402,-500.0,0.00019796,3]
[345452508,1734267035412,-328.39659653,0.00019796,3]
[345452509,1734267035423,-500.0,0.00019796,3]
[345452510,1734267035433,-500.0,0.00019796,3]
[345452511,1734267035442,-500.0,0.00019796,3]
[345452512,1734267035451,-500.0,0.00019796,3]
[345452513,1734267035461,-1083.89,0.00019796,3]
[345452514,1734267035470,-1083.89,0.00019796,3]
[345452515,1734267035479,-1083.89,0.00019796,3]
[345452516,1734267035489,-500.0,0.00019796,3]
[345452517,1734267035498,-500.0,0.00019796,3]
[345452518,1734267035507,-500.0,0.00019796,3]
[345452519,1734267035517,-500.0,0.00019796,3]
[345452520,1734267035526,-628.19,0.00019796,3]
[345452521,1734267035536,-648.98053622,0.00019796,3]
[345452522,1734267035545,-618.68,0.00019796,3]
[345452523,1734267035701,-618.68,0.00019796,3]
[345452524,1734267035711,-618.68,0.00019796,3]
[345452525,1734267035721,-500.0,0.00019796,3]
[345452526,1734267035730,-625.91,0.00019796,3]
[345452527,1734267035740,-265.8945005,0.00019796,3]
[345452528,1734267035758,-234.1054995,0.00019796,3]
[345452529,1734267035768,-500.0,0.00019796,3]
[345452530,1734267035779,-500.0,0.00019796,3]
[345452531,1734267035788,-500.0,0.00019796,3]
[345452532,1734267035797,-500.0,0.00019796,3]
[345452533,1734267035806,-500.0,0.00019796,3]
[345452534,1734267035816,-500.0,0.00019796,3]
[345452535,1734267035826,-500.0,0.00019796,3]
[345452536,1734267035835,-500.0,0.00019796,3]
[345452537,1734267035845,-500.0,0.00019796,3]
[345452538,1734267035854,-500.0,0.00019796,3]
[345452539,1734267035864,-500.0,0.00019796,3]
[345452540,1734267035873,-500.0,0.00019796,3]
[345452541,1734267035883,-500.0,0.00019796,3]
[345452542,1734267035893,-500.0,0.00019796,3]
[345452543,1734267035903,-500.0,0.00019796,3]
[345452544,1734267035916,-500.0,0.00019796,3]
[345452545,1734267035926,-500.0,0.00019796,3]
[345452546,1734267035935,-551.64579733,0.00019796,3]
[345452547,1734267035944,-500.0,0.00019796,3]
[345452548,1734267035954,-500.0,0.00019796,3]
[345452549,1734267035963,-500.0,0.00019796,3]
[345452550,1734267035973,-685.69,0.00019796,3]
[345452551,1734267035982,-685.69,0.00019796,3]
[345452552,1734267035992,-685.69,0.00019796,3]
[345452553,1734267036001,-500.0,0.00019796,3]
[345452554,1734267036010,-500.0,0.00019796,3]
[345452555,1734267036021,-500.0,0.00019796,3]
[345452556,1734267036030,-500.0,0.00019796,3]
[345452557,1734267036039,-500.0,0.00019796,3]
[345452558,1734267036049,-500.0,0.00019796,3]
[345452559,1734267036059,-1088.92,0.00019796,3]
[345452560,1734267036068,-1088.92,0.00019796,3]
[345452561,1734267036078,-500.0,0.00019796,3]
[345452562,1734267036088,-1088.92,0.00019796,3]
[345452563,1734267036097,-548.94,0.00019796,3]
[345452564,1734267036106,-500.0,0.00019796,3]
[345452565,1734267036116,-207.07859517,0.00019796,3]
[345452566,1734267036125,-168.86570337,0.00019796,3]
[345452567,1734267036135,-500.0,0.00019796,3]
[345452568,1734267036144,-2620.57,0.00019796,3]
[345452569,1734267036154,-500.0,0.00019796,3]
[345452570,1734267036166,-2620.57,0.00019796,3]
[345452571,1734267036179,-2620.57,0.00019796,3]
[345452572,1734267036189,-500.0,0.00019796,3]
[345452573,1734267036198,-500.0,0.00019796,3]
[345452574,1734267036208,-500.0,0.00019796,3]
[345452575,1734267036217,-500.0,0.00019796,3]
[345452576,1734267036227,-569.35,0.00019796,3]
[345452577,1734267036236,-619.56,0.00019796,3]
[345452578,1734267036246,-619.56,0.00019796,3]
[345452579,1734267036255,-313.92200501,0.00019796,3]
[345452587,1734267037863,-305.63799499,0.00019796,3]
[345452588,1734267037873,-500.0,0.00019796,3]
[345452589,1734267037883,-224.36200501,0.00019796,3]
[345452590,1734267037926,-275.63799499,0.00019796,3]
[345452591,1734267037936,-500.0,0.00019796,3]
[345452592,1734267037946,-356.65957496,0.00019796,3]
[345452593,1734267037956,-500.0,0.00019796,3]
[345452594,1734267037966,-372.93939905,0.00019796,3]
[345452595,1734267037978,-127.06060095,0.00019796,3]
[345452596,1734267037988,-500.0,0.00019796,3]
[345452597,1734267037998,-372.43921268,0.00019796,3]
[345452608,1734267040227,-795.49187224,0.00019786,3]
[345452609,1734267040240,-5.40812776,0.00019786,3]
[345452610,1734267040249,-127.56078732,0.00019796,3]
[345452611,1734267040259,-500.0,0.00019796,3]
[345452612,1734267040268,-500.0,0.00019796,3]
[345452613,1734267040278,-311.74158191,0.00019796,3]
[345452614,1734267040289,-315.94610209,0.00019796,3]
[345452615,1734267040299,-49.74339791,0.00019796,3]
[345452616,1734267040310,-450.25660209,0.00019796,3]
[345452617,1734267040319,-500.0,0.00019796,3]
[345452618,1734267040328,-500.0,0.00019796,3]
[345452619,1734267040337,-528.06,0.00019796,3]
[345452620,1734267040347,-528.06,0.00019796,3]
[345452621,1734267040356,-528.06,0.00019796,3]
[345452622,1734267040365,-500.0,0.00019796,3]
[345452623,1734267040375,-500.0,0.00019796,3]
[345452624,1734267040384,-500.0,0.00019796,3]
[345452625,1734267040394,-1608.09,0.00019796,3]
[345452626,1734267040403,-1608.09,0.00019796,3]
[345452627,1734267040412,-1608.09,0.00019796,3]
[345452628,1734267040424,-500.0,0.00019796,3]
[345452629,1734267040434,-500.0,0.00019796,3]
[345452630,1734267040444,-500.0,0.00019796,3]
[345452631,1734267040453,-500.0,0.00019796,3]
[345452632,1734267040463,-500.0,0.00019796,3]
[345452633,1734267040472,-500.0,0.00019796,3]
[345452634,1734267040481,-500.0,0.00019796,3]
[345452635,1734267040491,-500.0,0.00019796,3]
[345452636,1734267040500,-500.0,0.00019796,3]
[345452637,1734267040510,-500.0,0.00019796,3]
[345452638,1734267040520,-500.0,0.00019796,3]
[345452639,1734267040529,-500.0,0.00019796,3]
[345452640,1734267040539,-50.53339787,0.00019796,3]
[345452641,1734267041825,-500.0,0.00019786,3]
[345452642,1734267041834,-449.46660213,0.00019796,3]
[345452643,1734267041843,-500.0,0.00019796,3]
[345452644,1734267041853,-500.0,0.00019796,3]
[345452645,1734267041862,-500.0,0.00019796,3]
[345452646,1734267041871,-500.0,0.00019796,3]
[345452647,1734267041881,-500.0,0.00019796,3]
[345452648,1734267041890,-329.01541303,0.00019796,3]
[345452649,1734267041902,-170.98458697,0.00019796,3]
[345452650,1734267041911,-500.0,0.00019796,3]
[345452651,1734267041923,-500.0,0.00019796,3]
[345452652,1734267041932,-500.0,0.00019796,3]
[345452653,1734267041942,-500.0,0.00019796,3]
[345452654,1734267041951,-500.0,0.00019796,3]
[345452655,1734267041960,-396.50562349,0.00019796,3]
[345452656,1734267041969,-500.0,0.00019796,3]
[345452657,1734267041979,-365.87442898,0.00019796,3]